fUST/lending_fUST_20250212
["ID","MTS","AMOUNT","RATE_DAILY","PERIOD"]
[352782860,1739310643612,-500.0,0.00013554,2]
[352782864,1739310643632,-500.0,0.00013554,2]
[352782867,1739310643643,-500.0,0.00013554,2]
[352782870,1739310643653,-481.55714484,0.00013554,2]
[352782873,1739310643663,-500.0,0.00013554,2]
[352782875,1739310643673,-500.0,0.00013554,2]
[352782877,1739310643682,-500.0,0.00013554,2]
[352782879,1739310643694,-500.0,0.00013554,2]
[352782881,1739310643705,-500.0,0.00013554,2]
[352782883,1739310643715,-500.0,0.00013554,2]
[352782885,1739310643725,-500.0,0.00013554,2]
[352782887,1739310643735,-500.0,0.00013554,2]
[352782890,1739310643746,-500.0,0.00013554,2]
[352782892,1739310643755,-500.0,0.00013554,2]
[352782894,1739310643766,-500.0,0.00013554,2]
[352782896,1739310643776,-500.0,0.00013554,2]
[352782898,1739310643785,-500.0,0.00013554,2]
[352782900,1739310643799,-500.0,0.00013554,2]
[352782902,1739310643810,-537.1436798,0.00013554,2]
[352782904,1739310643820,-500.0,0.00013554,2]
[352782906,1739310643829,-500.0,0.00013554,2]
[352782908,1739310643842,-500.0,0.00013554,2]
[352782910,1739310643852,-500.0,0.00013554,2]
[352782912,1739310643862,-500.0,0.00013554,2]
[352782914,1739310643873,-500.0,0.00013554,2]
[352782916,1739310643883,-39.66556939,0.00013554,2]
[352782919,1739310643897,-460.33443061,0.00013554,2]
[352782921,1739310643907,-597.43,0.00013554,2]
[352782923,1739310643918,-500.0,0.00013554,2]
[352782925,1739310643927,-365.74976939,0.00013554,2]
[352782927,1739310643939,-134.25023061,0.00013554,2]
[352782929,1739310643950,-335.95283714,0.00013554,2]
[352782932,1739310643963,-164.04716286,0.00013554,2]
[352782934,1739310643972,-500.0,0.00013554,2]
[352782936,1739310643981,-274.81648818,0.00013554,2]
[352782938,1739310643991,-500.0,0.00013554,2]
[352782940,1739310644001,-553.49919283,0.00013554,2]
[352782942,1739310644012,-500.0,0.00013554,2]
[352782944,1739310644021,-511.25565528,0.00013554,2]
[352782946,1739310644030,-500.0,0.00013554,2]
[352782948,1739310644040,-500.0,0.00013554,2]
[352782950,1739310644050,-500.0,0.00013554,2]
[352782952,1739310644059,-500.0,0.00013554,2]
[352782954,1739310644070,-500.0,0.00013554,2]
[352782956,1739310644080,-500.0,0.00013554,2]
[352782957,1739310644089,-500.0,0.00013554,2]
[352782958,1739310644099,-97.2069464,0.00013554,2]
[352782959,1739310644112,-406.44172788,0.00013554,2]
[352782960,1739310644121,-500.0,0.00013554,2]
[352782961,1739310644131,-500.0,0.00013554,2]
[352782962,1739310644140,-500.0,0.00013554,2]
[352782963,1739310644150,-500.0,0.00013554,2]
[352782964,1739310644160,-500.0,0.00013554,2]
[352782965,1739310644169,-500.0,0.00013554,2]
[352782966,1739310644179,-500.0,0.00013554,2]
[352782967,1739310644189,-457.0932381,0.00013554,2]
[352782968,1739310644207,-42.9067619,0.00013554,2]
[352782970,1739310644217,-511.67033962,0.00013554,2]
[352782972,1739310644226,-500.29079218,0.00013554,2]
[352782974,1739310644236,-500.0,0.00013554,2]
[352782976,1739310644246,-500.0,0.00013554,2]
[352782978,1739310644256,-500.0,0.00013554,2]
[352782980,1739310644266,-500.0,0.00013554,2]
[352782982,1739310644276,-500.0,0.00013554,2]
[352782984,1739310644285,-500.0,0.00013554,2]
[352782986,1739310644295,-500.0,0.00013554,2]
[352782988,1739310644305,-477.42824233,0.00013554,2]
[352782990,1739310644314,-350.75112447,0.00013554,2]
[352782992,1739310644324,-244.28093175,0.00013554,2]
[352782995,1739310644337,-255.71906825,0.00013554,2]
[352782997,1739310644347,-500.0,0.00013554,2]
[352782999,1739310644356,-500.0,0.00013554,2]
[352783001,1739310644372,-500.0,0.00013554,2]
[352783003,1739310644382,-500.00000001,0.00013554,2]
[352783005,1739310644392,-500.0,0.00013554,2]
[352783007,1739310644402,-500.0,0.00013554,2]
[352783009,1739310644411,-500.0,0.00013555,2]
[352783011,1739310644420,-317.61058948,0.00013555,2]
[352783013,1739310644430,-385.87795808,0.00013555,2]
[352783015,1739310644439,-500.0,0.00013555,2]
[352783017,1739310644451,-500.0,0.00013555,2]
[352783019,1739310644460,-500.0,0.00013555,2]
[352783021,1739310644469,-500.0,0.00013555,2]
[352783023,1739310644478,-500.0,0.00013555,2]
[352783025,1739310644488,-500.0,0.00013555,2]
[352783027,1739310644497,-575.49018478,0.00013555,2]
[352783030,1739310644509,-500.0,0.00013555,2]
[352783032,1739310644518,-500.0,0.00013555,2]
[352783034,1739310644527,-500.0,0.00013555,2]
[352783035,1739310644538,-500.0,0.00013555,2]
[352783038,1739310644550,-500.0,0.00013555,2]
[352783040,1739310644562,-500.94804017,0.00013555,2]
[352783042,1739310644571,-619.41708239,0.00013555,2]
[352783044,1739310644580,-500.0,0.00013555,2]
[352783046,1739310644590,-500.0,0.00013555,2]
[352783048,1739310644599,-500.0,0.00013555,2]
[352783050,1739310644610,-500.0,0.00013555,2]
[352783052,1739310644619,-502.47271874,0.00013555,2]
[352783054,1739310644629,-317.91529809,0.00013555,2]
[352783056,1739310644638,-500.0,0.00013555,2]
[352783058,1739310644648,-519.06782538,0.00013555,2]
[352783060,1739310644657,-500.0,0.00013555,2]
[352783062,1739310644666,-511.57584221,0.00013555,2]
[352783064,1739310644675,-510.68602465,0.00013555,2]
[352783066,1739310644685,-500.0,0.00013555,2]
[352783068,1739310644695,-500.0,0.00013555,2]
[352783070,1739310644704,-500.0,0.00013555,2]
[352783072,1739310644713,-500.0,0.00013555,2]
[352783074,1739310644723,-500.0,0.00013555,2]
[352783076,1739310644732,-500.0,0.00013555,2]
[352783078,1739310644742,-390.75867204,0.00013555,2]
[352783080,1739310644751,-500.0,0.00013555,2]
[352783082,1739310644762,-500.0,0.00013555,2]
[352783084,1739310644772,-500.0,0.00013555,2]
[352783086,1739310644782,-500.0,0.00013555,2]
[352783088,1739310644792,-500.0,0.00013555,2]
[352783090,1739310644804,-515.65214503,0.00013555,2]
[352783092,1739310644815,-500.0,0.00013555,2]
[352783094,1739310644825,-500.0,0.00013555,2]
[352783096,1739310644835,-513.03769392,0.00013555,2]
[352783098,1739310644848,-500.0,0.00013555,2]
[352783100,1739310644857,-500.0,0.00013555,2]
[352783102,1739310644867,-500.0,0.00013555,2]
[352783104,1739310644877,-591.57814628,0.00013555,2]
[352783106,1739310644889,-573.12641476,0.00013555,2]
[352783108,1739310644899,-500.0,0.00013555,2]
[352783110,1739310644909,-518.12909913,0.00013555,2]
[352783112,1739310644919,-500.0,0.00013555,2]
[352783114,1739310644929,-500.0,0.00013555,2]
[352783116,1739310644939,-500.0,0.00013555,2]
[352783118,1739310644949,-493.93833945,0.00013573,2]
[352783120,1739310644959,-500.0,0.00013573,2]
[352783122,1739310644969,-151.0,0.000136,2]
[352783124,1739310644978,-500.0,0.00013688,2]
[352783126,1739310644988,-500.0,0.00013688,2]
[352783128,1739310644998,-500.0,0.00013688,2]
[352783131,1739310645007,-500.0,0.00013688,2]
[352783133,1739310645016,-500.0,0.00013688,2]
[352783135,1739310645026,-500.0,0.00013689,2]
[352783136,1739310645035,-500.0,0.00013689,2]
[352783139,1739310645045,-156.27045151,0.00013689,2]
[352783141,1739310645054,-500.0,0.00013689,2]
[352783143,1739310645063,-500.0,0.00013689,2]
[352783145,1739310645073,-500.0,0.00013689,2]
[352783147,1739310645082,-500.0,0.00013689,2]
[352783149,1739310645091,-500.0,0.00013689,2]
[352783151,1739310645101,-500.0,0.00013689,2]
[352783153,1739310645110,-500.0,0.00013689,2]
[352783155,1739310645120,-500.0,0.00013689,2]
[352783157,1739310645129,-500.0,0.00013689,2]
[352783159,1739310645138,-221.65742302,0.00013689,2]
[352783161,1739310645147,-238.0478117,0.00013689,2]
[352783163,1739310645156,-500.0,0.00013689,2]
[352783165,1739310645166,-500.0,0.00013689,2]
[352783167,1739310645176,-500.0,0.00013689,2]
[352783169,1739310645185,-512.66413506,0.00013689,2]
[352783171,1739310645195,-500.0,0.00013689,2]
[352783173,1739310645205,-500.0,0.00013689,2]
[352783175,1739310645214,-500.0,0.00013689,2]
[352783177,1739310645224,-500.0,0.00013689,2]
[352783179,1739310645233,-795.79,0.00013689,2]
[352783181,1739310645243,-500.0,0.00013689,2]
[352783183,1739310645253,-500.0,0.00013689,2]
[352783185,1739310645262,-525.60833296,0.00013689,2]
[352783187,1739310645272,-500.0,0.00013689,2]
[352783189,1739310645281,-500.0,0.00013689,2]
[352783191,1739310645291,-500.0,0.00013689,2]
[352783193,1739310645300,-500.0,0.00013689,2]
[352783195,1739310645309,-500.0,0.00013689,2]
[352783197,1739310645318,-500.0,0.00013689,2]
[352783199,1739310645327,-500.0,0.00013689,2]
[352783201,1739310645337,-500.0,0.00013689,2]
[352783203,1739310645347,-500.0,0.00013689,2]
[352783205,1739310645357,-500.0,0.00013689,2]
[352783207,1739310645367,-500.0,0.00013689,2]
[352783209,1739310645377,-500.0,0.00013689,2]
[352783212,1739310645387,-500.0,0.00013689,2]
[352783214,1739310645398,-207.17,0.00013689,2]
[352783216,1739310645408,-500.0,0.00013689,2]
[352783218,1739310645418,-500.0,0.00013689,2]
[352783220,1739310645427,-500.0,0.00013689,2]
[352783222,1739310645437,-500.0,0.00013689,2]
[352783224,1739310645446,-607.3842335,0.00013689,2]
[352783226,1739310645456,-500.0,0.00013689,2]
[352783228,1739310645465,-500.0,0.00013689,2]
[352783230,1739310645475,-500.0,0.00013689,2]
[352783232,1739310645485,-500.0,0.00013689,2]
[352783234,1739310645496,-500.0,0.00013689,2]
[352783236,1739310645506,-500.0,0.00013689,2]
[352783238,1739310645516,-500.0,0.00013689,2]
[352783240,1739310645525,-500.0,0.00013689,2]
[352783242,1739310645535,-500.0,0.00013689,2]
[352783244,1739310645545,-500.0,0.00013689,2]
[352783246,1739310645554,-500.0,0.00013689,2]
[352783248,1739310645564,-500.0,0.00013689,2]
[352783250,1739310645573,-500.0,0.00013689,2]
[352783252,1739310645583,-500.0,0.00013689,2]
[352783255,1739310645593,-500.0,0.00013689,2]
[352783257,1739310645602,-500.0,0.00013689,2]
[352783259,1739310645612,-500.0,0.00013689,2]
[352783261,1739310645621,-500.0,0.00013689,2]
[352783263,1739310645631,-500.0,0.00013689,2]
[352783265,1739310645641,-500.0,0.00013689,2]
[352783267,1739310645651,-500.0,0.00013689,2]
[352783269,1739310645660,-500.0,0.00013689,2]
[352783271,1739310645670,-500.0,0.00013689,2]
[352783273,1739310645679,-500.0,0.00013689,2]
[352783275,1739310645689,-150.12808639,0.00013689,2]
[352783277,1739310645700,-500.0,0.00013689,2]
[352783279,1739310645711,-500.0,0.00013689,2]
[352783281,1739310645721,-500.0,0.00013689,2]
[352783283,1739310645730,-288.40398268,0.00013689,2]
[352783285,1739310645740,-500.0,0.00013689,2]
[352783287,1739310645750,-500.0,0.00013689,2]
[352783289,1739310645760,-500.0,0.00013689,2]
[352783309,1739310645941,-500.0,0.00013689,2]
[352783311,1739310645952,-500.0,0.00013689,2]
[352783313,1739310645962,-500.0,0.00013689,2]
[352783315,1739310645972,-282.48,0.00013689,2]
[352783317,1739310645981,-500.0,0.00013689,2]
[352783319,1739310645992,-500.0,0.00013689,2]
[352783322,1739310646002,-500.0,0.00013689,2]
[352783324,1739310646012,-500.0,0.00013689,2]
[352783326,1739310646022,-500.0,0.00013689,2]
[352783328,1739310646033,-500.0,0.00013689,2]
[352783330,1739310646044,-500.0,0.00013689,2]
[352783332,1739310646054,-500.0,0.00013689,2]
[352783334,1739310646064,-500.0,0.00013689,2]
[352783336,1739310646074,-500.0,0.00013689,2]
[352783338,1739310646083,-500.0,0.00013689,2]
[352783340,1739310646094,-403.83,0.00013689,2]
[352783342,1739310646103,-500.0,0.00013689,2]
[352783344,1739310646113,-500.0,0.00013689,2]
[352783346,1739310646123,-500.0,0.00013689,2]
[352783348,1739310646132,-500.0,0.00013689,2]
[352783350,1739310646142,-500.0,0.00013689,2]
[352783352,1739310646152,-500.0,0.00013689,2]
[352783354,1739310646161,-500.0,0.00013689,2]
[352783356,1739310646171,-500.0,0.00013689,2]
[352783358,1739310646181,-500.0,0.00013689,2]
[352783360,1739310646191,-500.0,0.0001369,2]
[352783362,1739310646201,-500.0,0.0001369,2]
[352783364,1739310646211,-500.0,0.0001369,2]
[352783366,1739310646221,-500.0,0.0001369,2]
[352783368,1739310646230,-500.0,0.0001369,2]
[352783370,1739310646240,-500.0,0.0001369,2]
[352783372,1739310646249,-500.0,0.0001369,2]
[352783374,1739310646259,-500.0,0.0001369,2]
[352783376,1739310646269,-500.0,0.0001369,2]
[352783378,1739310646279,-500.0,0.0001369,2]
[352783381,1739310646290,-500.0,0.0001369,2]
[352783383,1739310646300,-500.0,0.0001369,2]
[352783385,1739310646309,-500.0,0.0001369,2]
[352783387,1739310646319,-500.0,0.0001369,2]
[352783389,1739310646329,-500.0,0.0001369,2]
[352783391,1739310646338,-500.0,0.0001369,2]
[352783393,1739310646348,-544.58,0.0001369,2]
[352783395,1739310646358,-500.0,0.0001369,2]
[352783397,1739310646367,-500.0,0.0001369,2]
[352783399,1739310646377,-264.41,0.0001369,2]
[352783401,1739310646386,-500.0,0.0001369,2]
[352783403,1739310646397,-500.0,0.0001369,2]
[352783405,1739310646407,-370.45,0.0001369,2]
[352783408,1739310646417,-276.8,0.0001369,2]
[352783411,1739310646426,-322.55,0.0001369,2]
[352783414,1739310646436,-500.0,0.0001369,2]
[352783417,1739310646446,-500.0,0.0001369,2]
[352783420,1739310646456,-628.5,0.0001369,2]
[352783423,1739310646466,-473.75,0.0001369,2]
[352783426,1739310646475,-500.0,0.0001369,2]
[352783429,1739310646484,-1517.18,0.0001369,2]
[352783432,1739310646494,-3722.95,0.0001369,2]
[352783435,1739310646504,-500.0,0.0001369,2]
[352783438,1739310646515,-500.0,0.0001369,2]
[352783441,1739310646524,-500.0,0.0001369,2]
[352783444,1739310646534,-500.0,0.0001369,2]
[352783447,1739310646543,-500.0,0.0001369,2]
[352783449,1739310646553,-228.64,0.0001369,2]
[352783451,1739310646564,-500.0,0.0001369,2]
[352783453,1739310646573,-500.0,0.0001369,2]
[352783455,1739310646582,-500.0,0.0001369,2]
[352783457,1739310646592,-500.0,0.0001369,2]
[352783459,1739310646601,-500.0,0.0001369,2]
[352783461,1739310646611,-500.0,0.0001369,2]
[352783463,1739310646621,-500.0,0.0001369,2]
[352783465,1739310646631,-500.0,0.0001369,2]
[352783467,1739310646641,-1092.27,0.0001369,2]
[352783470,1739310646651,-500.0,0.0001369,2]
[352783471,1739310646660,-644.45170563,0.0001369,2]
[352783474,1739310646670,-500.0,0.0001369,2]
[352783475,1739310646680,-500.0,0.0001369,2]
[352783478,1739310646690,-500.0,0.0001369,2]
[352783479,1739310646701,-500.0,0.0001369,2]
[352783482,1739310646726,-500.0,0.0001369,2]
[352783483,1739310646806,-537.39978055,0.0001369,2]
[352783486,1739310646940,-500.0,0.0001369,2]
[352783488,1739310647029,-500.0,0.0001369,2]
[352783490,1739310647177,-500.0,0.0001369,2]
[352783492,1739310647254,-500.0,0.00013691,2]
[352783494,1739310647379,-477.69,0.00013691,2]
[352783496,1739310647503,-576.91,0.00013691,2]
[352783498,1739310647564,-500.0,0.00013691,2]
[352783500,1739310647650,-500.0,0.00013691,2]
[352783502,1739310647778,-500.0,0.00013691,2]
[352783504,1739310647867,-500.0,0.00013691,2]
[352783506,1739310647896,-500.0,0.00013691,2]
[352783508,1739310647906,-549.25,0.00013691,2]
[352783510,1739310647916,-500.0,0.00013691,2]
[352783512,1739310647926,-500.0,0.00013691,2]
[352783514,1739310647936,-500.0,0.00013691,2]
[352783516,1739310647947,-500.0,0.00013691,2]
[352783518,1739310647957,-500.0,0.00013691,2]
[352783520,1739310647967,-500.0,0.00013691,2]
[352783522,1739310647976,-500.0,0.00013691,2]
[352783524,1739310647987,-500.0,0.00013691,2]
[352783526,1739310647996,-500.0,0.00013691,2]
[352783528,1739310648006,-500.0,0.00013691,2]
[352783530,1739310648016,-500.0,0.00013691,2]
[352783532,1739310648026,-500.0,0.00013691,2]
[352783534,1739310648036,-500.0,0.00013691,2]
[352783536,1739310648047,-500.0,0.00013691,2]
[352783538,1739310648057,-500.0,0.00013691,2]
[352783540,1739310648066,-500.0,0.00013691,2]
[352783542,1739310648076,-500.0,0.00013691,2]
[352783544,1739310648086,-510.55742378,0.00013691,2]
[352783546,1739310648096,-577.21965953,0.00013691,2]
[352783548,1739310648105,-500.0,0.00013691,2]
[352783550,1739310648115,-500.0,0.00013691,2]
[352783552,1739310648125,-500.0,0.00013691,2]
[352783553,1739310648135,-500.0,0.00013691,2]
[352783554,1739310648146,-151.0,0.00013691,2]
[352783555,1739310648156,-151.0,0.00013691,2]
[352783556,1739310648165,-151.0,0.00013691,2]
[352783557,1739310648175,-151.18142,0.00013691,2]
[352783558,1739310648184,-151.0,0.00013691,2]
[352783559,1739310648194,-151.0,0.00013691,2]
[352783560,1739310648205,-2013.729086,0.00013691,2]
[352783561,1739310648215,-2013.729086,0.00013691,2]
[352783562,1739310648224,-226.539876,0.00013691,2]
[352783563,1739310648234,-464.94,0.00013692,2]
[352783564,1739310648243,-500.0,0.00013692,2]
[352783565,1739310648253,-500.0,0.00013692,2]
[352783566,1739310648262,-500.0,0.00013692,2]
[352783568,1739310648272,-500.0,0.00013692,2]
[352783570,1739310648282,-500.0,0.00013698,2]
[352783572,1739310648292,-509.08,0.00013698,2]
[352783574,1739310648302,-266.0454383,0.00013699,2]
[352783576,1739310648312,-187.307507,0.00013699,2]
[352783578,1739310648322,-151.0,0.000137,2]
[352783580,1739310648333,-534.55119156,0.00013797,2]
[352783582,1739310648344,-500.0,0.00013813,2]
[352783584,1739310648354,-161.03966392,0.00013813,2]
[352783586,1739310648364,-212.72998543,0.00013813,2]
[352783588,1739310648375,-500.37266573,0.00013813,2]
[352783590,1739310648387,-152.68680559,0.00013813,2]
[352783592,1739310648397,-500.0,0.00013813,2]
[352783594,1739310648408,-502.34434292,0.00013813,2]
[352783596,1739310648419,-500.0,0.00013813,2]
[352783598,1739310648429,-500.0,0.00013814,2]
[352783600,1739310648439,-294.796,0.00013816,2]
[352783602,1739310648450,-500.0,0.00013825,2]
[352783604,1739310648460,-338.19,0.00013825,2]
[352783606,1739310648470,-500.0,0.00013825,2]
[352783608,1739310648480,-500.0,0.00013825,2]
[352783610,1739310648490,-500.0,0.00013825,2]
[352783612,1739310648500,-795.79,0.00013826,2]
[352783614,1739310648512,-500.0,0.00013826,2]
[352783616,1739310648523,-500.0,0.00013826,2]
[352783619,1739310648533,-500.0,0.00013826,2]
[352783621,1739310648543,-500.0,0.00013826,2]
[352783623,1739310648555,-395.3,0.00013826,2]
[352783625,1739310648567,-500.0,0.00013826,2]
[352783627,1739310648578,-500.0,0.00013826,2]
[352783629,1739310648590,-500.0,0.00013826,2]
[352783631,1739310648600,-500.0,0.00013826,2]
[352783633,1739310648611,-151.0,0.00013826,2]
[352783635,1739310648623,-151.0,0.00013826,2]
[352783637,1739310648632,-500.0,0.00013826,2]
[352783639,1739310648643,-151.0,0.00013826,2]
[352783641,1739310648653,-500.0,0.00013826,2]
[352783643,1739310648664,-500.0,0.00013826,2]
[352783645,1739310648674,-209.861751,0.00013826,2]
[352783647,1739310648685,-209.861751,0.00013826,2]
[352783649,1739310648696,-500.0,0.00013826,2]
[352783652,1739310648707,-500.0,0.00013826,2]
[352783654,1739310648716,-1039.145602,0.00013826,2]
[352783656,1739310648726,-1039.145602,0.00013826,2]
[352783658,1739310648736,-151.0,0.00013826,2]
[352783659,1739310648747,-151.0,0.00013826,2]
[352783662,1739310648757,-415.08,0.00013826,2]
[352783664,1739310648767,-289.941389,0.00013826,2]
[352783666,1739310648777,-289.941389,0.00013826,2]
[352783668,1739310648787,-500.0,0.00013826,2]
[352783670,1739310648799,-500.0,0.00013826,2]
[352783672,1739310648812,-500.0,0.00013826,2]
[352783674,1739310648822,-609.48,0.00013826,2]
[352783676,1739310648832,-500.0,0.00013826,2]
[352783678,1739310648843,-500.0,0.00013827,2]
[352783679,1739310648854,-500.0,0.00013827,2]
[352783682,1739310648865,-500.0,0.00013827,2]
[352783683,1739310648874,-350.82,0.00013827,2]
[352783685,1739310648888,-500.0,0.00013827,2]
[352783688,1739310648899,-500.0,0.00013827,2]
[352783690,1739310648910,-500.0,0.00013827,2]
[352783692,1739310648921,-456.88,0.00013827,2]
[352783694,1739310648933,-157.29,0.00013827,2]
[352783696,1739310648943,-500.0,0.00013827,2]
[352783698,1739310648954,-350.17,0.00013827,2]
[352783700,1739310648964,-1517.18,0.00013827,2]
[352783702,1739310648974,-3722.95,0.00013827,2]
[352783704,1739310648985,-500.0,0.00013827,2]
[352783706,1739310648996,-530.02,0.00013827,2]
[352783708,1739310649006,-495.8859132,0.00013827,2]
[352783719,1739310649111,-4.1140868,0.00013827,2]
[352783721,1739310649122,-462.06,0.00013827,2]
[352783723,1739310649133,-139.82591315,0.00013827,2]
[352783725,1739310649147,-360.17408685,0.00013827,2]
[352783727,1739310649157,-1092.27,0.00013827,2]
[352783730,1739310649168,-156.91593228,0.00013827,2]
[352783746,1739310649339,-343.08406772,0.00013827,2]
[352783749,1739310649350,-318.31,0.00013827,2]
[352783751,1739310649361,-320.79,0.00013827,2]
[352783753,1739310649372,-519.38,0.00013828,2]
[352783755,1739310649383,-500.0,0.00013828,2]
[352783757,1739310649394,-500.0,0.00013828,2]
[352783759,1739310649405,-500.0,0.00013828,2]
[352783761,1739310649416,-500.0,0.00013828,2]
[352783763,1739310649427,-500.0,0.00013828,2]
[352783765,1739310649438,-153.55705781,0.00013828,2]
[352783767,1739310649450,-500.0,0.00013828,2]
[352783769,1739310649460,-500.0,0.00013828,2]
[352783771,1739310649471,-500.0,0.00013828,2]
[352783773,1739310649481,-268.750659,0.00013829,2]
[352783775,1739310649492,-268.750659,0.00013829,2]
[352783780,1739310649535,-555.80357494,0.00013888,2]
[352783782,1739310649545,-151.0,0.000139,2]
[352783784,1739310649556,-269.02919261,0.00013931,2]
[352783786,1739310649566,-500.0,0.00013931,2]
[352783789,1739310649576,-312.87512054,0.00013931,2]
[352783791,1739310649587,-500.0,0.00013962,2]
[352783793,1739310649596,-500.0,0.00013962,2]
[352783795,1739310649606,-500.0,0.00013962,2]
[352783797,1739310649615,-500.0,0.00013962,2]
[352783799,1739310649625,-795.79,0.00013963,2]
[352783801,1739310649634,-500.0,0.00013963,2]
[352783803,1739310649644,-500.0,0.00013963,2]
[352783805,1739310649654,-500.0,0.00013963,2]
[352783807,1739310649664,-500.0,0.00013963,2]
[352783809,1739310649674,-500.0,0.00013963,2]
[352783811,1739310649683,-212.14,0.00013963,2]
[352783813,1739310649693,-500.0,0.00013963,2]
[352783815,1739310649706,-500.0,0.00013963,2]
[352783817,1739310649715,-166.95,0.00013963,2]
[352783819,1739310649725,-411.91,0.00013963,2]
[352783821,1739310649735,-500.0,0.00013963,2]
[352783823,1739310649744,-500.0,0.00013963,2]
[352783825,1739310649754,-267.19,0.00013963,2]
[352783827,1739310649765,-216.92,0.00013963,2]
[352783830,1739310649775,-500.0,0.00013963,2]
[352783832,1739310649785,-464.3,0.00013963,2]
[352783834,1739310649803,-500.0,0.00013963,2]
[352783836,1739310649813,-500.0,0.00013964,2]
[352783838,1739310649823,-500.0,0.00013964,2]
[352783840,1739310649834,-208.76,0.00013964,2]
[352783842,1739310649845,-500.0,0.00013964,2]
[352783844,1739310649855,-500.0,0.00013964,2]
[352783846,1739310649864,-500.0,0.00013964,2]
[352783847,1739310649876,-434.59,0.00013964,2]
[352783848,1739310649886,-151.0,0.00013964,2]
[352783849,1739310649896,-151.0,0.00013964,2]
[352783850,1739310649906,-151.0,0.00013964,2]
[352783851,1739310649916,-1427.341106,0.00013964,2]
[352783852,1739310649927,-1427.341106,0.00013964,2]
[352783853,1739310649937,-1517.18,0.00013964,2]
[352783854,1739310649946,-3722.95,0.00013964,2]
[352783855,1739310649960,-500.0,0.00013964,2]
[352783856,1739310649970,-320.76,0.00013964,2]
[352783857,1739310649980,-484.52982038,0.00013964,2]
[352783858,1739310649994,-15.47017962,0.00013964,2]
[352783859,1739310650004,-1092.27,0.00013964,2]
[352783860,1739310650015,-500.0,0.00013964,2]
[352783861,1739310650025,-396.0,0.00013965,2]
[352783862,1739310650034,-302.58,0.00013965,2]
[352783863,1739310650044,-269.82654656,0.00014007,2]
[352783864,1739310650054,-349.08259983,0.00014007,2]
[352783865,1739310650063,-500.0,0.00014007,2]
[352783867,1739310650073,-267.72952181,0.00014007,2]
[352783869,1739310650083,-160.20912102,0.00014007,2]
[352783870,1739310650092,-500.0,0.00014007,2]
[352783871,1739310650102,-500.0,0.00014007,2]
[352783872,1739310650111,-500.0,0.00014099,2]
[352783873,1739310650121,-611.71,0.00014099,2]
[352783874,1739310650130,-500.0,0.00014099,2]
[352783875,1739310650140,-500.0,0.00014099,2]
[352783876,1739310650151,-151.0,0.000141,2]
[352783877,1739310650160,-795.79,0.000141,2]
[352783878,1739310650170,-500.0,0.000141,2]
[352783879,1739310650180,-500.0,0.000141,2]
[352783880,1739310650190,-500.0,0.000141,2]
[352783881,1739310650202,-500.0,0.000141,2]